bitfinex-derivatives/quotes_BNBF0:USTF0_20250524
["timestamp","ask_amount","ask_price","bid_price","bid_amount"]
[1748064122307,0.44435951,667.16,667.1,1.47]
[1748064122508,0.44435951,667.15,667.1,1.47]
[1748064122709,1.48749039,667.17,667.1,1.47]
[1748064122902,0.44435675,667.16,667.1,1.47]
[1748064123202,0.44435675,667.15,667.1,1.47]
[1748064123402,1.48749039,667.23,667.1,1.47]
[1748064123707,0.44434964,667.22,667.1,1.47]
[1748064123903,0.44435265,667.21,667.1,1.47]
[1748064124111,0.44435265,667.2,667.1,1.47]
[1748064124310,0.44435265,667.19,667.1,1.47]
[1748064124510,0.44435265,667.18,667.1,1.47]
[1748064124709,0.44435265,667.17,667.1,1.47]
[1748064124914,0.44435265,667.16,667.1,1.47]
[1748064125210,0.44435265,667.15,667.1,1.47]
[1748064125413,0.44434179,667.14,667.1,1.47]
[1748064125710,1.48749039,667.25,667.1,1.47]
[1748064126010,0.44434182,667.24,667.1,1.47]
[1748064126204,0.44434182,667.23,667.1,1.47]
[1748064126410,0.44434182,667.22,667.1,1.47]
[1748064126610,0.44434182,667.21,667.1,1.47]
[1748064126811,0.44434182,667.2,667.1,1.47]
[1748064127012,0.44434182,667.19,667.1,1.47]
[1748064127212,0.44434182,667.18,667.1,1.47]
[1748064127409,0.44432624,667.17,667.1,1.47]
[1748064127613,0.44432624,667.16,667.1,1.47]
[1748064127813,0.44432624,667.15,667.1,1.47]
[1748064128015,1.11884705,667.11,667.1,1.47]
[1748064128313,1.11884705,667.11,666.95,1.302]
[1748064134416,1.11884705,667.1,666.95,1.302]
[1748064137019,1.11884705,667.3,666.95,1.302]
[1748064137319,0.44408119,667.29,666.95,1.302]
[1748064137518,1.11884705,667.3,666.95,1.302]
[1748064137721,0.44406295,667.29,666.95,1.302]
[1748064138016,0.44406295,667.28,666.95,1.302]
[1748064138221,1.11884705,667.3,666.94,2.484]
[1748064138415,0.44400303,667.29,666.94,2.484]
[1748064138618,1.11884705,667.3,666.94,2.484]
[1748064138814,0.4440016,667.29,666.94,2.484]
[1748064139018,1.11884705,667.31,666.94,2.484]
[1748064141521,1.11884705,667.31,666.95,1.095]
[1748064143723,1.11884705,667.32,666.95,1.095]
[1748064147126,1.11884705,667.31,666.95,1.095]
[1748064149528,1.11884705,667.31,666.96,1.404]
[1748064149826,1.11884705,667.35,666.96,1.404]
[1748064152227,1.11884705,667.36,666.96,1.404]
[1748064156436,1.11884705,667.35,666.96,1.404]
[1748064158440,1.11884705,667.3,666.96,1.404]
[1748064161039,1.11884705,667.27,666.96,1.404]
[1748064163744,1.11884705,667.32,666.96,1.404]
[1748064164844,0.44366554,667.31,666.96,1.404]
[1748064165044,1.11884705,667.32,666.96,1.404]
[1748064166349,0.44377664,667.31,666.96,1.404]
[1748064166647,1.11884705,667.32,666.96,1.404]
[1748064166848,0.44377738,667.31,666.96,1.404]
[1748064167048,1.11884705,667.32,666.96,1.404]
[1748064167248,0.4437789,667.31,666.96,1.404]
[1748064167448,1.11884705,667.32,666.96,1.404]
[1748064167743,0.44381697,667.31,666.96,1.404]
[1748064167946,1.11884705,667.32,666.96,1.404]
[1748064168144,0.44381697,667.31,666.96,1.404]
[1748064168348,1.11884705,667.32,666.96,1.404]
[1748064168549,0.44386234,667.31,666.96,1.404]
[1748064168750,1.11884705,667.31,666.96,1.404]
[1748064169253,0.44391427,667.3,666.96,1.404]
[1748064169551,1.11884705,667.31,666.96,1.404]
[1748064169751,0.44391285,667.3,666.96,1.404]
[1748064169947,1.11884705,667.31,666.96,1.404]
[1748064170149,0.44391333,667.3,666.96,1.404]
[1748064170346,1.11884705,667.3,666.96,1.404]
[1748064172347,2.21733955,667.67,666.96,1.404]
[1748064172348,1.11884705,667.28,666.96,1.404]
[1748064174951,1.11884705,667.25,666.96,1.404]
[1748064177657,1.11884705,667.23,666.96,1.404]
[1748064179552,1.11884705,667.23,666.95,1.095]
[1748064179956,1.11884705,667.21,666.95,1.095]
[1748064181759,1.11884705,667.21,666.96,1.006]
[1748064182259,1.11884705,667.21,666.97,1.564]
[1748064182661,1.11884705,667.22,666.97,1.564]
[1748064185464,1.11884705,667.21,666.97,1.564]
[1748064192067,1.11884705,667.2,666.97,1.564]
[1748064194670,1.11884705,667.17,666.97,1.564]
[1748064196670,1.11884705,667.15,666.97,1.564]
[1748064199772,1.11884705,667.13,666.97,1.564]
[1748064202066,1.11884705,667.12,666.97,1.564]
[1748064204076,1.11884705,667.13,666.97,1.564]
[1748064208574,1.11884705,667.18,666.97,1.564]
[1748064210975,1.11884705,667.19,666.97,1.564]
[1748064213279,1.11884705,667.19,666.95,1.493]
[1748064213975,1.11884705,667.25,666.95,1.493]
[1748064215781,1.11884705,667.25,666.96,1.359]
[1748064216382,1.11884705,667.25,666.97,1.213]
[1748064216982,0.26077964,667.79,666.97,1.213]
[1748064216983,1.11884705,667.31,666.97,1.213]
[1748064219089,1.11884705,667.3,666.97,1.213]
[1748064224394,1.11884705,667.26,666.97,1.213]
[1748064226997,1.11884705,667.24,666.97,1.213]
[1748064229595,1.11884705,667.26,666.97,1.213]
[1748064230897,1.11884705,667.26,666.98,1.049]
[1748064234096,1.11884705,667.19,666.98,1.049]
[1748064236698,1.11884705,667.18,666.98,1.049]
[1748064238901,1.11884705,667.22,666.98,1.049]
[1748064239702,1.11884705,667.22,666.99,1.262]
[1748064240803,1.11884705,667.22,667.0,1.278]
[1748064242399,2.21733955,667.58,667.0,1.278]
[1748064242400,1.11884705,667.2,667.0,1.278]
[1748064246111,1.11884705,667.18,667.0,1.278]
[1748064252715,1.11884705,667.18,666.99,1.262]
[1748064255519,1.11884705,667.18,666.98,1.049]
[1748064255719,1.11884705,667.18,667.0,1.577]
[1748064257620,1.11884705,667.29,667.0,1.577]
[1748064259321,1.11884705,667.29,667.01,1.471]
[1748064260227,1.11884705,667.35,667.01,1.471]
[1748064262927,1.11884705,667.36,667.01,1.471]
[1748064264723,1.11884705,667.39,667.01,1.471]
[1748064267433,1.11884705,667.42,667.01,1.471]
[1748064269929,1.11884705,667.47,667.01,1.471]
[1748064272533,1.11884705,667.55,667.01,1.471]
[1748064274539,0.44281921,667.54,667.01,1.471]
[1748064274731,0.44281921,667.53,667.01,1.471]
[1748064275034,1.11884705,667.58,667.01,1.471]
[1748064275229,0.44282119,667.57,667.02,1.674]
[1748064275533,0.44282119,667.56,667.02,1.674]
[1748064275734,0.44282119,667.55,667.02,1.674]
[1748064275929,0.44282119,667.54,667.02,1.674]
[1748064276131,0.44282119,667.53,667.02,1.674]
[1748064276331,0.44282119,667.52,667.02,1.674]
[1748064276530,1.11884705,667.58,667.02,1.674]
[1748064276734,0.44279182,667.57,667.02,1.674]
[1748064276935,0.44279182,667.56,667.02,1.674]
[1748064277231,0.44279182,667.55,667.02,1.674]
[1748064277437,1.11884705,667.51,667.02,1.674]
[1748064277633,0.44279182,667.5,667.02,1.674]
[1748064280043,1.11884705,667.46,667.02,1.674]
[1748064282341,1.11884705,667.43,667.02,1.674]
[1748064284946,0.26069271,668.03,667.02,1.674]
[1748064284947,1.11884705,667.42,667.02,1.674]
[1748064292254,1.11884705,667.42,667.03,1.395]
[1748064293457,1.11884705,667.42,667.04,1.068]
[1748064293958,1.11884705,667.41,667.04,1.068]
[1748064296058,1.11884705,667.4,667.04,1.068]
[1748064298862,1.11884705,667.45,667.04,1.068]
[1748064299565,1.11884705,667.45,667.05,1.351]
[1748064301563,1.11884705,667.49,667.05,1.351]
[1748064304066,1.11884705,667.62,667.05,1.351]
[1748064306973,1.11884705,667.71,667.05,1.351]
[1748064311273,1.11884705,667.72,667.05,1.351]
[1748064313476,0.26066928,668.18,667.05,1.351]
[1748064313477,1.11884705,667.73,667.05,1.351]
[1748064314471,1.11884705,667.73,667.06,1.656]
[1748064318281,1.11884705,667.74,667.06,1.656]
[1748064320582,1.11884705,667.77,667.06,1.656]
[1748064322579,1.11884705,667.76,667.06,1.656]
[1748064326287,1.11884705,667.76,667.06,2.911]
[1748064327186,1.11884705,667.76,667.06,4.427]
[1748064328591,1.11884705,667.86,667.06,4.427]
[1748064331084,1.11884705,667.89,667.07,1.1123956]
[1748064332789,0.44110691,667.88,667.07,1.1123956]
[1748064332989,0.44110691,667.87,667.07,1.1123956]
[1748064333288,0.44111612,667.86,667.07,1.1123956]
[1748064333490,1.11884705,667.84,667.06,4.427]
[1748064335592,1.11884705,667.83,667.06,4.427]
[1748064336894,1.11884705,667.83,667.07,0.2998186]
[1748064339600,1.11884705,668.36,667.33,1.1123956]
[1748064342698,1.11884705,668.41,667.29,1.1123956]
[1748064342899,0.43924749,668.4,667.29,1.1123956]
[1748064343198,1.11884705,668.41,667.29,1.1123956]
[1748064344696,1.11884705,668.41,667.3,1.155]
[1748064345299,1.11884705,668.45,667.3,1.155]
[1748064345501,0.4388583,668.44,667.3,1.155]
[1748064345699,0.4388583,668.43,667.3,1.155]
[1748064346000,1.11884705,668.45,667.3,1.155]
[1748064346299,0.43888032,668.44,667.3,1.155]
[1748064346497,0.43879042,668.43,667.3,1.155]
[1748064346696,1.11884705,668.45,667.3,1.155]
[1748064346894,0.43879136,668.44,667.3,1.155]
[1748064347192,0.43879136,668.43,667.3,1.155]
[1748064347398,1.11884705,668.45,667.3,1.155]
[1748064347699,0.43871905,668.44,667.3,1.155]
[1748064347900,1.11884705,668.45,667.3,1.155]
[1748064348100,0.43871978,668.44,667.3,1.155]
[1748064348399,1.11884705,668.45,667.3,1.155]
[1748064348593,0.43866334,668.44,667.3,1.155]
[1748064348795,1.11884705,668.45,667.3,1.155]
[1748064348996,0.43866334,668.44,667.3,1.155]
[1748064349194,1.11884705,668.45,667.3,1.155]
[1748064349399,0.43866261,668.44,667.3,1.155]
[1748064349602,1.11884705,668.45,667.3,1.155]
[1748064349799,0.43861981,668.44,667.3,1.155]
[1748064350001,1.11884705,668.47,667.3,1.155]
[1748064350200,0.43862136,668.46,667.3,1.155]
[1748064350400,0.43862136,668.45,667.3,1.155]
[1748064350601,0.43862136,668.44,667.3,1.155]
[1748064350798,0.73782995,668.43,667.3,1.155]
[1748064350999,0.73783442,668.42,667.3,1.155]
[1748064351202,0.43862136,668.41,667.3,1.155]
[1748064352202,0.7378389,668.41,667.3,1.155]
[1748064352403,1.85669043,668.4,667.3,1.155]
[1748064352597,0.43862136,668.39,667.3,1.155]
[1748064352797,0.73784785,668.39,667.3,1.155]
[1748064353002,0.73785233,668.38,667.3,1.155]
[1748064353302,0.43862136,668.37,667.3,1.155]
[1748064354708,1.11884705,668.34,667.3,1.155]
[1748064354907,0.43862136,668.33,667.3,1.155]
[1748064356108,0.43899017,668.32,667.3,1.155]
[1748064356306,0.43899017,668.31,667.3,1.155]
[1748064356503,0.43899017,668.3,667.3,1.155]
[1748064356704,0.43899017,668.29,667.3,1.155]
[1748064356907,1.11884705,668.33,667.3,1.155]
[1748064357109,0.43908203,668.32,667.3,1.155]
[1748064357304,0.43908203,668.31,667.3,1.155]
[1748064357505,0.43908203,668.3,667.3,1.155]
[1748064357705,0.43908203,668.29,667.3,1.155]
[1748064357906,0.43918347,668.28,667.3,1.155]
[1748064358106,1.11884705,668.33,667.3,1.155]
[1748064358303,0.43917968,668.32,667.3,1.155]
[1748064358503,0.43917968,668.31,667.3,1.155]
[1748064358706,0.43917968,668.3,667.3,1.155]
[1748064358908,0.43917968,668.29,667.3,1.155]
[1748064359108,0.43917968,668.28,667.3,1.155]
[1748064359309,1.11884705,668.33,667.3,1.155]
[1748064359510,0.43927882,668.32,667.3,1.155]
[1748064359711,1.11884705,668.3,667.3,1.155]
[1748064360011,0.43935109,668.29,667.3,1.155]
[1748064360309,0.43935109,668.28,667.3,1.155]
[1748064360507,0.43935109,668.27,667.3,1.155]
[1748064360712,1.11884705,668.3,667.3,1.155]
[1748064360911,0.43935738,668.29,667.3,1.155]
[1748064361212,0.43935394,668.28,667.3,1.155]
[1748064361412,1.11884705,668.3,667.3,1.155]
[1748064361608,0.43934408,668.29,667.3,1.155]
[1748064361812,0.43934408,668.28,667.3,1.155]
[1748064362015,1.11884705,668.27,667.3,1.155]
[1748064366015,1.11884705,668.26,667.3,1.155]
[1748064368214,1.11884705,668.25,667.3,1.155]
[1748064370615,1.11884705,668.24,667.3,1.155]
[1748064373319,1.11884705,668.21,667.3,1.155]
[1748064373719,1.11884705,668.21,667.26,1.1123956]
[1748064375616,1.11884705,668.2,667.27,1.1123956]
[1748064377622,1.11884705,668.2,667.28,1.19]
[1748064378222,1.11884705,668.21,667.28,1.19]
[1748064380426,1.11884705,668.2,667.28,2.3023956]
[1748064383228,0.29923097,668.38,667.3,1.1123956]
[1748064383229,1.11884705,668.17,667.3,1.1123956]
[1748064385728,1.11884705,668.15,667.32,1.1123956]
[1748064388129,1.11884705,668.15,667.31,1.1123956]
[1748064390430,1.11884705,668.15,667.31,2.7203956]
[1748064390933,1.11884705,668.13,667.33,1.1123956]
[1748064393529,1.11884705,668.26,667.31,2.7203956]
[1748064393733,0.44133971,668.25,667.31,2.7203956]
[1748064393933,0.44133971,668.24,667.31,2.7203956]
[1748064394133,0.44133971,668.23,667.31,2.7203956]
[1748064394435,0.44161598,668.22,667.31,2.7203956]
[1748064394633,0.44161598,668.21,667.31,2.7203956]
[1748064394833,1.11884705,668.26,667.31,2.7203956]
[1748064395032,0.44161509,668.25,667.31,2.7203956]
[1748064395237,0.44162992,668.24,667.31,2.7203956]
[1748064395436,0.44162992,668.23,667.31,2.7203956]
[1748064395635,0.44162992,668.22,667.31,2.7203956]
[1748064395832,0.44162992,668.21,667.39,1.1123956]
[1748064396036,0.44162992,668.2,667.39,1.1123956]
[1748064396231,0.44162992,668.19,667.39,1.1123956]
[1748064396433,0.44162992,668.18,667.39,1.1123956]
[1748064396638,0.44162992,668.17,667.39,1.1123956]
[1748064396837,0.44162992,668.16,667.39,1.1123956]
[1748064397036,0.44231096,668.15,667.39,1.1123956]
[1748064397236,1.11884705,668.23,667.39,1.1123956]
[1748064397438,0.44231284,668.22,667.39,1.1123956]
[1748064397633,0.44231284,668.21,667.39,1.1123956]
[1748064397833,1.56115989,668.2,667.42,1.1123956]
[1748064398137,0.44231284,668.19,667.42,1.1123956]
[1748064398337,0.44231284,668.18,667.42,1.1123956]
[1748064398531,0.44231284,668.17,667.42,1.1123956]
[1748064398736,0.44231284,668.16,667.42,1.1123956]
[1748064398935,0.44232719,668.15,667.42,1.1123956]
[1748064399138,1.11884705,668.2,667.42,1.1123956]
[1748064399339,0.44232994,668.19,667.42,1.1123956]
[1748064399534,0.44232994,668.18,667.42,1.1123956]
[1748064399734,0.44232994,668.17,667.42,1.1123956]
[1748064399936,0.44232994,668.16,667.42,1.1123956]
[1748064400134,0.44232994,668.15,667.43,1.1123956]
[1748064400338,0.44232994,668.14,667.43,1.1123956]
[1748064400638,1.11884705,668.19,667.43,1.1123956]
[1748064400838,0.44239401,668.18,667.43,1.1123956]
[1748064401037,0.44239401,668.17,667.43,1.1123956]
[1748064401239,0.44239401,668.16,667.43,1.1123956]
[1748064401439,0.44239401,668.15,667.43,1.1123956]
[1748064401641,0.44239401,668.14,667.43,1.1123956]
[1748064401833,1.11884705,668.19,667.43,1.1123956]
[1748064402040,0.44241627,668.18,667.43,2.6853956]
[1748064402234,0.44241627,668.17,667.43,2.6853956]
[1748064402437,0.44241627,668.16,667.43,2.6853956]
[1748064402637,0.44241627,668.15,667.43,2.6853956]
[1748064402835,0.44241627,668.14,667.43,2.6853956]
[1748064403039,1.11884705,668.18,667.43,2.6853956]
[1748064403239,0.44243661,668.17,667.43,2.6853956]
[1748064403539,0.44243661,668.16,667.43,2.6853956]
[1748064403740,0.44243661,668.15,667.43,2.6853956]
[1748064403941,0.44243661,668.14,667.43,2.6853956]
[1748064404141,1.11884705,668.18,667.43,2.6853956]
[1748064404441,0.44245328,668.17,667.43,2.6853956]
[1748064404642,0.44245328,668.16,667.43,2.6853956]
[1748064404842,1.11884705,668.1,667.52,1.1123956]
[1748064407239,1.11884705,668.09,667.52,1.1123956]
[1748064409148,1.11884705,668.1,667.51,1.1123956]
[1748064411646,1.11884705,668.1,667.52,1.1123956]
[1748064413648,1.11884705,668.1,667.48,1.1123956]
[1748064413845,1.11884705,668.09,667.48,1.1123956]
[1748064416044,1.11884705,668.1,667.48,1.1123956]
[1748064420055,0.44262727,668.09,667.48,1.1123956]
[1748064420255,1.11884705,668.1,667.48,1.1123956]
[1748064420453,0.44263571,668.09,667.48,1.1123956]
[1748064420649,1.11884705,668.1,667.48,1.1123956]
[1748064420852,0.44263646,668.09,667.48,1.1123956]
[1748064421051,1.11884705,668.08,667.46,1.1123956]
[1748064423357,1.11884705,668.06,667.48,1.1123956]
[1748064425650,1.11884705,668.06,667.49,1.1123956]
[1748064428159,1.11884705,668.04,667.5,1.1123956]
[1748064430863,1.11884705,668.04,667.51,1.1123956]
[1748064433059,1.11884705,668.05,667.49,1.1123956]
[1748064435066,1.11884705,668.04,667.51,1.1123956]
[1748064439768,1.11884705,668.03,667.52,2.5163956]
[1748064443069,0.44260954,668.02,667.52,2.5163956]
[1748064443370,0.44260954,668.01,667.52,2.5163956]
[1748064443563,1.11884705,668.03,667.52,2.5163956]
[1748064443771,0.44256008,668.02,667.52,2.5163956]
[1748064443969,0.44256008,668.01,667.52,2.5163956]
[1748064444169,1.11884705,668.03,667.52,2.5163956]
[1748064444370,0.44253974,668.02,667.52,2.5163956]
[1748064444573,0.44253974,668.01,667.52,2.5163956]
[1748064444767,1.11884705,668.03,667.52,2.5163956]
[1748064444969,0.44253974,668.02,667.52,2.5163956]
[1748064445170,0.44253974,668.01,667.52,2.5163956]
[1748064445467,1.11884705,668.03,667.52,2.5163956]
[1748064445670,1.11884705,667.95,667.52,1.404]
[1748064449474,0.44250448,667.94,667.53,1.407]
[1748064449673,0.44250448,667.93,667.53,1.407]
[1748064449869,0.44250448,667.92,667.53,1.407]
[1748064450071,0.44250448,667.91,667.53,1.407]
[1748064450268,0.44250448,667.9,667.53,1.407]
[1748064450474,0.44250448,667.89,667.53,1.407]
[1748064450774,0.44250448,667.88,667.53,1.407]
[1748064450975,0.44250448,667.87,667.53,1.407]
[1748064451175,0.44250448,667.86,667.53,1.407]
[1748064451475,0.44250448,667.85,667.53,1.407]
[1748064451675,0.44250448,667.84,667.53,1.407]
[1748064451872,0.44250448,667.83,667.53,1.407]
[1748064452174,0.44250448,667.82,667.53,1.407]
[1748064452371,0.44250448,667.81,667.53,1.407]
[1748064452576,0.44250448,667.8,667.53,1.407]
[1748064452776,0.44250448,667.79,667.53,1.407]
[1748064452977,0.44250448,667.78,667.53,1.407]
[1748064453279,1.11884705,667.66,667.53,1.407]
[1748064455586,1.11884705,667.73,667.53,1.407]
[1748064457586,1.11884705,667.73,667.54,1.611]
[1748064458789,1.11884705,667.79,667.54,1.611]
[1748064461494,2.21733955,668.11,667.54,1.611]
[1748064461495,1.11884705,667.82,667.54,1.611]
[1748064466790,1.11884705,667.85,667.54,1.611]
[1748064469096,1.11884705,667.86,667.54,1.611]
[1748064471700,1.11884705,667.89,667.54,1.611]
[1748064474201,1.11884705,667.88,667.54,1.611]
[1748064476398,1.11884705,667.9,667.54,1.611]
[1748064476597,0.43910088,667.89,667.54,1.611]
[1748064476797,1.11884705,667.9,667.54,1.611]
[1748064477002,0.43911992,667.89,667.54,1.611]
[1748064477202,0.43911992,667.88,667.54,1.611]
[1748064477501,0.43911992,667.87,667.54,1.611]
[1748064477702,1.11884705,667.9,667.54,1.611]
[1748064477900,0.43911538,667.89,667.54,1.611]
[1748064478099,0.43911538,667.88,667.54,1.611]
[1748064478304,0.43911538,667.87,667.54,1.611]
[1748064478505,1.11884705,667.9,667.54,1.611]
[1748064478705,1.11884705,667.88,667.54,1.611]
[1748064478907,0.4391201,667.87,667.54,1.611]
[1748064481207,0.4391201,667.87,667.55,1.306]
[1748064482807,1.11884705,667.88,667.55,1.306]
[1748064483007,0.43913306,667.87,667.55,1.306]
[1748064483309,1.11884705,667.87,667.55,1.306]
[1748064485009,1.11884705,667.87,667.56,1.204]
[1748064485509,1.11884705,667.85,667.56,1.204]
[1748064487809,1.11884705,667.9,667.56,1.204]
[1748064489011,1.11884705,667.89,667.56,1.204]
[1748064490013,1.11884705,667.89,667.56,2.857]
[1748064491007,1.11884705,667.87,667.56,2.857]
[1748064493715,1.11884705,667.86,667.56,2.857]
[1748064495817,1.11884705,667.81,667.56,2.857]
[1748064497712,1.11884705,667.79,667.56,2.857]
[1748064500422,1.11884705,667.82,667.56,2.857]
[1748064503024,1.11884705,667.78,667.56,2.857]
[1748064503523,1.11884705,667.78,667.56,4.168]
[1748064505433,1.11884705,667.75,667.56,4.168]
[1748064508233,1.11884705,667.67,667.56,4.168]
[1748064511241,1.11884705,667.6,667.56,4.168]
[1748064513140,1.11884705,667.6,667.56,2.515]
[1748064513338,1.11884705,667.58,667.56,2.515]
[1748064515941,1.11884705,667.59,667.56,2.515]
[1748064516140,1.11884705,667.59,667.56,1.311]
[1748064520946,1.11884705,667.6,667.56,1.311]
[1748064523348,1.48749039,667.72,667.56,1.311]
[1748064523349,1.11884705,667.62,667.56,1.311]
[1748064525754,1.11884705,667.59,667.56,1.311]
[1748064530355,1.11884705,667.58,667.56,1.311]
[1748064530556,1.11884705,667.58,667.42,1.553]
[1748064534967,1.11884705,667.53,667.42,1.553]
[1748064546066,1.11884705,667.66,667.42,1.553]
[1748064548473,1.11884705,667.7,667.42,1.553]
[1748064550674,1.11884705,667.71,667.42,1.553]
[1748064551374,1.11884705,667.71,667.43,2.341]
[1748064553475,1.11884705,667.72,667.43,2.341]
[1748064556177,1.11884705,667.68,667.43,2.341]
[1748064564490,1.11884705,667.75,667.43,2.341]
[1748064568390,1.11884705,667.76,667.43,4.018]
[1748064570993,1.11884705,667.83,667.43,4.018]
[1748064573902,1.11884705,667.82,667.43,4.018]
[1748064576600,1.11884705,667.8,667.43,4.018]
[1748064579303,1.11884705,667.89,667.43,4.018]
[1748064581003,1.11884705,667.91,667.43,4.018]
[1748064582905,1.11884705,667.91,667.43,2.341]
[1748064583204,1.11884705,667.91,667.26,1.1123956]
[1748064583404,1.11884705,667.93,667.24,1.1123956]
[1748064588505,1.11884705,667.93,667.25,1.1123956]
[1748064590306,1.11884705,667.92,667.26,1.1123956]
[1748064592709,1.11884705,667.91,667.26,1.1123956]
[1748064595605,1.11884705,667.89,667.28,1.1123956]
[1748064598413,1.11884705,667.9,667.28,1.1123956]
[1748064600314,1.11884705,667.89,667.28,1.1123956]
[1748064603018,1.11884705,667.89,667.27,1.1123956]
[1748064605317,1.11884705,667.89,667.29,1.1123956]
[1748064607815,1.11884705,668.05,667.35,1.1123956]
[1748064609721,1.48749039,668.29,667.41,1.1123956]
[1748064610022,0.44107648,668.28,667.41,1.1123956]
[1748064610221,1.48749039,668.29,667.41,1.1123956]
[1748064610222,0.44107648,668.27,667.41,1.1123956]
[1748064610521,0.44102442,668.26,667.41,1.1123956]
[1748064610720,0.44102442,668.25,667.41,1.1123956]
[1748064610919,0.44102442,668.24,667.41,1.1123956]
[1748064611120,0.44102442,668.23,667.41,1.1123956]
[1748064611321,0.44102442,668.22,667.41,1.1123956]
[1748064611616,0.44102442,668.21,667.41,1.1123956]
[1748064611820,0.44102442,668.2,667.42,1.1123956]
[1748064612021,0.44102442,668.19,667.42,1.1123956]
[1748064612221,0.44102442,668.18,667.42,1.1123956]
[1748064612421,0.44102442,668.17,667.42,1.1123956]
[1748064612719,0.44102442,668.16,667.42,1.1123956]
[1748064612923,0.44102442,668.15,667.42,1.1123956]
[1748064613116,1.48749039,668.32,667.42,1.1123956]
[1748064613319,0.44093251,668.31,667.42,1.1123956]
[1748064613517,0.44093251,668.3,667.42,1.1123956]
[1748064613721,0.44093251,668.29,667.42,1.1123956]
[1748064613917,0.44093251,668.28,667.42,1.1123956]
[1748064614122,1.48749039,668.25,667.49,1.1123956]
[1748064614323,0.44086838,668.24,667.49,1.1123956]
[1748064614518,0.44086838,668.23,667.49,1.1123956]
[1748064614718,0.44086838,668.22,667.49,1.1123956]
[1748064614924,0.44086838,668.21,667.49,1.1123956]
[1748064615124,0.44086838,668.2,667.49,1.1123956]
[1748064615323,1.48749039,668.25,667.49,1.1123956]
[1748064615624,0.44074369,668.24,667.49,1.1123956]
[1748064615824,0.44074369,668.23,667.49,1.1123956]
[1748064616018,0.44074212,668.22,667.51,1.1123956]
[1748064616220,0.44074212,668.21,667.51,1.1123956]
[1748064616420,1.48749039,668.28,667.51,1.1123956]
[1748064616623,0.44068427,668.27,667.51,1.1123956]
[1748064616924,0.44068427,668.26,667.51,1.1123956]
[1748064617120,0.44068427,668.25,667.51,1.1123956]
[1748064617324,0.44068427,668.24,667.51,1.1123956]
[1748064617524,0.44068427,668.23,667.51,1.1123956]
[1748064617720,0.44068427,668.22,667.51,1.1123956]
[1748064617924,0.44068427,668.21,667.51,1.1123956]
[1748064618126,1.48749039,668.28,667.51,1.1123956]
[1748064618327,0.44064453,668.27,667.47,1.1123956]
[1748064618527,0.44064453,668.26,667.47,1.1123956]
[1748064618721,0.44064453,668.25,667.47,1.1123956]
[1748064618926,1.48749039,668.31,667.47,1.1123956]
[1748064619126,0.44054253,668.3,667.47,1.1123956]
[1748064619323,0.44054253,668.29,667.47,1.1123956]
[1748064619626,0.44054253,668.28,667.47,1.1123956]
[1748064619828,0.44054253,668.27,667.47,1.1123956]
[1748064620022,1.48749039,668.31,666.66,3.42407985]
[1748064620023,0.44054253,668.26,667.49,1.1123956]
[1748064620228,1.48749039,668.44,667.49,1.1123956]
[1748064620528,0.4404205,668.37,667.49,1.1123956]
[1748064620729,0.4404205,668.36,667.49,1.1123956]
[1748064621029,0.4404205,668.35,667.49,1.1123956]
[1748064621328,1.48749039,668.44,667.49,1.1123956]
[1748064621529,0.44025433,668.37,667.49,1.1123956]
[1748064621722,1.48749039,668.44,667.49,1.1123956]
[1748064621723,0.44025433,668.36,667.49,1.1123956]
[1748064621926,1.48749039,668.44,667.49,1.1123956]
[1748064622127,0.44025122,668.37,667.49,1.1123956]
[1748064622328,1.48749039,668.44,667.49,1.1123956]
[1748064622828,1.48749039,668.57,667.57,1.1123956]
[1748064624830,1.48749039,668.62,667.54,1.1123956]
[1748064626433,0.43972598,668.61,667.54,1.1123956]
[1748064626630,0.43972598,668.6,667.54,1.1123956]
[1748064626828,0.43972598,668.59,667.54,1.1123956]
[1748064627029,0.43972598,668.58,667.54,1.1123956]
[1748064627229,0.43972598,668.57,667.54,1.1123956]
[1748064627427,0.43972598,668.56,667.54,1.1123956]
[1748064627733,1.92721637,668.55,667.64,1.1123956]